bitfinex-derivatives/quotes_SOLF0:USTF0_20260213
["timestamp","ask_amount","ask_price","bid_price","bid_amount"]
[1770977984753,3.40738907,80.33,80.301,11.2161]
[1770977985056,8.10172477,80.35,80.296,8.83289409]
[1770977985252,9.73902457,80.349,80.298,8.83289409]
[1770977985849,9.73902457,80.349,80.302,11.216]
[1770977986254,9.73902457,80.349,80.298,8.83289409]
[1770977986455,9.73902457,80.339,80.282,8.83289409]
[1770977987555,9.73902457,80.329,80.282,8.83289409]
[1770977987757,9.73902457,80.339,80.282,8.83289409]
[1770977987958,9.73902457,80.329,80.282,8.83289409]
[1770977988556,8.10172477,80.33,80.282,8.83289409]
[1770977988757,9.73902457,80.338,80.282,8.83289409]
[1770977989458,8.10172477,80.31,80.262,8.83289409]
[1770977989960,8.10172477,80.29,80.246,8.83289409]
[1770977990754,9.73902457,80.299,80.246,8.83289409]
[1770977992456,8.10172477,80.29,80.246,8.83289409]
[1770977992857,9.73902457,80.289,80.237,11.2251]
[1770977993065,9.73902457,80.279,80.225,385.5114668]
[1770977993362,11.2207,80.269,80.223,195.33162229]
[1770977993570,9.73902457,80.259,80.201,8.83289409]
[1770977994471,9.73902457,80.259,80.201,20.06299409]
[1770977994664,9.73902457,80.259,80.202,8.83289409]
[1770977995269,8.10172477,80.25,80.202,8.83289409]
[1770977995569,17.84074934,80.25,80.202,8.83289409]
[1770977995766,186.04202533,80.316,80.163,209.98217351]
[1770977995767,9.73902457,80.266,80.204,8.83289409]
[1770977996871,9.73902457,80.266,80.209,8.83289409]
[1770977997763,9.73902457,80.266,80.213,8.83289409]
[1770977998362,9.73902457,80.259,80.201,11.2301]
[1770977998572,9.73902457,80.259,80.202,8.83289409]
[1770977999571,9.73902457,80.259,80.216,8.83289409]
[1770978000469,9.73902457,80.259,80.201,8.83289409]
[1770978000664,8.11746859,80.28,80.201,8.83289409]
[1770978000665,9.46574754,80.249,80.201,8.83289409]
[1770978001571,9.46574754,80.249,80.128,205.24545039]
[1770978001572,9.46574754,80.219,80.171,9.63115476]
[1770978002762,8.11746859,80.21,80.164,11.2353]
[1770978003771,8.11746859,80.21,80.156,11.2364]
[1770978004174,17.58321613,80.21,80.156,11.2364]
[1770978004379,9.46574754,80.209,80.156,11.2364]
[1770978004581,8.11746859,80.2,80.156,11.2364]
[1770978005075,9.46574754,80.189,80.14,9.63115476]
[1770978005276,9.46574754,80.179,80.125,9.63115476]
[1770978005665,22.4519,80.232,80.125,9.63115476]
[1770978005666,8.11746859,80.19,80.125,9.63115476]
[1770978005870,9.46574754,80.189,80.125,9.63115476]
[1770978006167,9.46574754,80.179,80.125,9.63115476]
[1770978006565,8.11746859,80.19,80.132,9.63115476]
[1770978006770,9.46574754,80.194,80.132,9.63115476]
[1770978007867,8.11746859,80.19,80.139,11.2388]
[1770978008072,9.46574754,80.179,80.132,9.63115476]
[1770978008469,9.46574754,80.175,80.125,11.2408]
[1770978009073,9.46574754,80.175,80.111,9.63115476]
[1770978009074,9.46574754,80.168,80.111,9.63115476]
[1770978009272,8.11746859,80.16,80.111,9.63115476]
[1770978009683,9.46574754,80.168,80.111,9.63115476]
[1770978010774,11.2358,80.161,80.112,11.2425]
[1770978010972,9.46574754,80.16,80.112,11.2425]
[1770978011877,9.46574754,80.156,80.112,11.2425]
[1770978013277,9.46574754,80.156,80.119,11.2416]
[1770978013582,9.46574754,80.177,80.12,9.63115476]
[1770978014185,11.2346,80.17,80.125,11.2408]
[1770978014679,9.46574754,80.177,80.126,9.63115476]
[1770978015877,9.46574754,80.177,80.135,11.2394]
[1770978017482,9.46574754,80.177,80.126,9.63115476]
[1770978017687,11.2323,80.186,80.142,11.2384]
[1770978018384,9.46574754,80.186,80.15,11.2373]
[1770978018687,11.2313,80.193,80.15,11.2373]
[1770978019085,9.46574754,80.169,80.12,9.63115476]
[1770978021482,9.46574754,80.167,80.12,11.2415]
[1770978021682,9.46574754,80.167,80.105,9.63115476]
[1770978021886,17.58321613,80.16,80.105,9.63115476]
[1770978022087,9.46574754,80.16,80.105,9.63115476]
[1770978023789,9.46574754,80.16,80.125,11.2408]
[1770978026085,9.46574754,80.16,80.117,11.2419]
[1770978026594,9.46574754,80.16,80.105,9.63115476]
[1770978026595,9.46574754,80.159,80.105,9.63115476]
[1770978026789,9.46574754,80.156,80.105,9.63115476]
[1770978027289,9.46574754,80.156,80.114,20.87345476]
[1770978028390,9.46574754,80.156,80.12,11.2415]
[1770978028792,9.46574754,80.156,80.114,9.63115476]
[1770978029394,9.46574754,80.156,80.115,11.2422]
[1770978030292,9.46574754,80.156,80.115,20.87335476]
[1770978030490,22.4629,80.192,80.097,232.38736207]
[1770978030491,11.2349,80.168,80.125,9.63115476]
[1770978031785,11.2349,80.168,80.128,11.2403]
[1770978032592,9.46574754,80.171,80.128,21.65986213]
[1770978033693,11.2346,80.17,80.128,21.65986213]
[1770978034991,21.80879784,80.17,80.128,21.65986213]
[1770978035192,11.2333,80.179,80.141,10.7728361]
[1770978035785,11.2333,80.179,80.142,11.2384]
[1770978036390,11.2336,80.177,80.142,11.2384]
[1770978036598,10.18233434,80.177,80.126,10.7728361]
[1770978037096,10.18233434,80.176,80.126,10.7728361]
[1770978037895,10.18233434,80.173,80.14,11.2387]
[1770978038902,2.33185544,80.149,80.071,10.7728361]
[1770978039098,10.44932403,80.14,80.071,10.7728361]
[1770978039400,2.33185544,80.139,80.071,10.7728361]
[1770978039601,2.36309767,80.089,80.046,11.41561853]
[1770978039798,2.36309767,80.089,79.992,30.16183584]
[1770978039799,2.35847868,80.101,80.04,10.7728361]
[1770978039994,8.11746859,80.08,80.04,10.7728361]
[1770978040190,8.11746859,80.07,80.011,10.7728361]
[1770978040400,2.35847868,80.079,80.011,10.7728361]
[1770978040700,2.35847868,80.079,80.0,8.11746859]
[1770978040701,2.35847868,80.079,80.018,10.7728361]
[1770978041091,8.11746859,80.07,80.018,10.7728361]
[1770978041293,0.42582195,80.069,80.018,10.7728361]
[1770978043906,11.2493,80.065,80.018,10.7728361]
[1770978044199,0.58967282,80.085,80.021,10.7728361]
[1770978044397,8.11746859,80.07,80.021,10.7728361]
[1770978044593,0.61921718,80.069,80.021,10.7728361]
[1770978044997,0.69594223,80.059,80.001,10.7728361]
[1770978046614,0.74767123,80.089,80.021,10.7728361]
[1770978047707,0.21612216,80.082,80.023,10.97542754]
[1770978048610,0.21612216,80.082,80.02,8.11746859]
[1770978048611,0.21612216,80.082,80.037,10.97542754]
[1770978049014,11.2486,80.07,80.023,11.05927212]
[1770978049212,11.32521506,80.07,80.023,11.05927212]
[1770978049414,0.10436323,80.069,80.023,11.05927212]
[1770978050807,11.2491,80.067,80.023,11.05927212]
[1770978051113,8.11746859,80.08,80.01,8.11746859]
[1770978051114,8.45461001,80.08,80.01,8.11746859]
[1770978051308,0.33714142,80.079,80.011,10.95675528]
[1770978052021,11.2483,80.072,80.019,10.96018052]
[1770978052709,11.2483,80.072,80.022,10.91482851]
[1770978053505,11.2483,80.072,80.023,22.16992851]
[1770978053907,0.49559407,80.063,80.013,10.91813455]
[1770978055516,0.49559407,80.063,80.016,10.89775832]
[1770978056817,0.49559407,80.063,80.021,11.2553]
[1770978057223,30.64142792,80.12,80.016,10.89775832]
[1770978057224,0.47098975,80.078,80.016,10.89775832]
[1770978057930,11.2486,80.07,80.016,10.89775832]
[1770978059620,0.41072798,80.069,80.002,11.03744262]
[1770978060122,0.40436598,80.059,80.002,11.03744262]
[1770978060313,0.40436598,80.047,79.981,11.04062362]
[1770978060619,0.40436598,80.047,79.99,8.15802792]
[1770978060821,0.40436598,80.047,79.96,8.15802792]
[1770978060822,11.2508,80.055,80.01,11.04207783]
[1770978061022,0.47574985,80.054,79.996,11.04207783]
[1770978061621,11.252,80.046,80.0,11.2584]
[1770978062023,0.49344074,80.045,79.996,11.04207783]
[1770978062424,0.49344074,80.045,79.997,22.30390788]
[1770978063227,11.2531,80.038,79.997,22.30390788]
[1770978064323,0.49344074,80.045,79.998,11.02247387]
[1770978064530,0.60834515,80.061,80.001,11.02247387]
[1770978064925,11.2511,80.053,80.006,11.2574]
[1770978065230,0.47075151,80.053,80.006,11.2574]
[1770978066025,11.2532,80.038,80.001,11.02247387]
[1770978066529,11.254,80.031,79.994,11.2591]
[1770978067123,8.15802792,80.02,79.961,11.11436573]
[1770978067324,8.6276087,80.02,79.961,11.11436573]
[1770978067729,0.46958078,80.02,79.961,11.11436573]
[1770978067934,11.257,80.01,79.961,11.11436573]
[1770978068229,0.48602584,80.009,79.961,11.11436573]
[1770978068422,11.2589,79.997,79.961,11.11436573]
[1770978068623,11.2589,79.997,79.955,11.2647]
[1770978069228,11.2589,79.997,79.946,11.1172542]
[1770978069229,11.42715515,79.989,79.946,11.1172542]
[1770978069619,8.15802792,80.0,79.924,11.28772372]
[1770978069620,0.18883785,79.988,79.924,11.28772372]
[1770978070918,11.2605,79.985,79.94,11.2667]
[1770978071320,0.48237167,79.984,79.924,11.28772372]
[1770978071927,0.49822757,79.979,79.924,11.28772372]
[1770978072134,8.15802792,79.96,79.899,11.15463384]
[1770978072334,0.49822757,79.969,79.899,11.15463384]
[1770978072734,8.15802792,79.98,79.911,11.15463384]
[1770978073129,8.69260914,79.98,79.911,11.15463384]
[1770978073635,0.55559485,79.979,79.911,11.15463384]
[1770978073831,11.2617,79.977,79.923,11.2692]
[1770978074031,0.55010311,79.976,79.923,11.2692]
[1770978074235,0.55010311,79.976,79.923,22.41896193]
[1770978075132,0.38974059,79.966,79.913,11.2706]
[1770978075525,0.38974059,79.966,79.913,22.51077704]
[1770978075729,0.38974059,79.966,79.914,11.24017704]
[1770978075931,0.40463951,79.959,79.914,11.24017704]
[1770978076433,11.2623,79.973,79.916,11.24291857]
[1770978076737,0.41568578,79.969,79.916,11.24291857]
[1770978077836,0.4301579,79.959,79.912,11.2707]
[1770978078941,0.53645324,79.958,79.912,11.2707]
[1770978079142,0.53645324,79.958,79.905,11.20671333]
[1770978079143,8.15802792,79.95,79.905,11.20671333]
[1770978080636,8.15802792,79.95,79.906,11.2715]
[1770978081545,0.5627148,79.948,79.906,11.2715]
[1770978082547,11.2646,79.956,79.91,11.271]
[1770978083548,11.2655,79.95,79.907,11.22499018]
[1770978083748,0.55683913,79.949,79.903,11.272]
[1770978083945,8.71486705,79.93,79.879,11.24406784]
[1770978084248,0.55683913,79.929,79.881,11.24406784]
[1770978084648,8.73332014,79.94,79.881,11.24406784]
[1770978084944,11.2682,79.931,79.886,11.2744]
[1770978086546,11.2682,79.931,79.886,22.61629032]
[1770978086736,11.2682,79.931,79.889,11.274]
[1770978086936,0.38467315,79.939,79.89,11.31555766]
[1770978087140,0.46860922,79.953,79.891,11.31555766]
[1770978088355,0.46860922,79.953,79.901,11.31798173]
[1770978089058,8.15802792,79.96,79.901,11.31798173]
[1770978089258,11.2638,79.962,79.918,11.2698]
[1770978089457,11.2638,79.962,79.919,11.09049334]
[1770978090256,0.9540902,79.968,79.928,11.2684]
[1770978090652,11.2633,79.966,79.921,11.2694]
[1770978091458,11.2633,79.966,79.927,11.2686]
[1770978092062,22.5175,79.998,79.919,11.09049334]
[1770978092063,0.94462441,79.984,79.919,11.09049334]
[1770978092362,0.94462441,79.979,79.919,11.09049334]
[1770978092560,8.15802792,79.97,79.919,11.09049334]
[1770978093154,0.94462441,79.979,79.919,11.09049334]
[1770978093557,11.2618,79.976,79.936,11.2674]
[1770978093757,0.94462441,79.979,79.919,11.09049334]
[1770978094866,11.2618,79.976,79.935,11.2675]
[1770978095269,11.2626,79.97,79.935,11.2675]
[1770978095668,11.2626,79.97,79.932,10.97186028]
[1770978095864,11.2645,79.957,79.917,11.47279134]
[1770978096068,9.50785621,79.97,79.917,11.47279134]
[1770978096271,9.50785621,79.97,79.9,8.15802792]
[1770978096272,9.50785621,79.97,79.925,11.47279134]
[1770978097065,3.43489298,79.96,79.925,11.47279134]
[1770978097765,3.43489298,79.96,79.927,11.2686]
[1770978100470,3.43489298,79.94,79.915,11.2702]
[1770978100769,3.43489298,79.95,79.915,11.2702]
[1770978101272,3.43489298,79.95,79.919,11.2697]
[1770978105562,3.43489298,79.95,79.916,11.47279134]
[1770978106772,3.43489298,79.95,79.917,11.27]
[1770978109362,3.43489298,79.94,79.917,11.27]
[1770978110465,11.2646,79.957,79.917,11.27]
[1770978110466,3.43489298,79.95,79.917,11.27]
[1770978111375,11.2637,79.963,79.921,11.47279134]
[1770978111579,3.43489298,79.95,79.921,11.47279134]
[1770978111877,3.43489298,79.95,79.926,11.2687]
[1770978112173,3.43489298,79.94,79.921,11.47279134]
[1770978112568,3.43489298,79.95,79.921,11.47279134]
[1770978113080,3.43489298,79.94,79.921,11.47279134]
[1770978113273,3.43489298,79.94,79.908,11.47279134]
[1770978113669,3.43489298,79.94,79.915,11.2703]
[1770978113873,3.43489298,79.94,79.879,22.85075119]
[1770978113874,3.43489298,79.96,79.921,11.47279134]
[1770978114378,3.43489298,79.95,79.921,11.47279134]
[1770978114572,3.43489298,79.95,79.923,11.2692]
[1770978115376,3.43489298,79.95,79.921,11.47279134]
[1770978115976,3.43489298,79.96,79.924,11.47279134]
[1770978116678,3.43489298,79.95,79.924,11.47279134]
[1770978116878,3.43539055,79.95,79.924,11.47279134]
[1770978117372,3.43539055,79.95,79.924,22.74189134]
[1770978117869,3.43539055,79.96,79.924,22.74189134]
[1770978118572,3.43539055,79.96,79.925,11.47279134]
[1770978118977,11.2651,79.953,79.925,11.47279134]
[1770978119177,3.43539055,79.95,79.925,11.47279134]
[1770978120476,3.43539055,79.96,79.925,11.47279134]
[1770978120677,3.43539055,79.96,79.926,11.58588075]
[1770978120878,11.2649,79.954,79.925,11.47279134]
[1770978121075,3.43539055,79.95,79.925,11.47279134]
[1770978122978,3.43539055,79.95,79.911,11.58588075]
[1770978123375,11.2649,79.954,79.913,11.2706]
[1770978123578,3.43539055,79.95,79.917,11.58588075]
[1770978124875,3.43539055,79.95,79.918,11.49618569]
[1770978125582,3.43539055,79.95,79.913,11.2706]
[1770978125583,3.43539055,79.95,79.922,11.49618569]
[1770978125783,11.2656,79.949,79.922,11.49618569]
[1770978129890,11.2665,79.943,79.915,11.49618569]
[1770978130290,14.70099055,79.95,79.915,11.49618569]
[1770978130685,11.2656,79.95,79.915,11.49618569]
[1770978131189,3.43539055,79.96,79.919,11.58588075]
[1770978131489,11.34181877,79.971,79.93,11.49618569]
[1770978131490,3.43539055,79.97,79.93,11.49618569]
[1770978131678,11.2646,79.956,79.93,11.49618569]
[1770978132193,11.34181877,79.959,79.924,11.58588075]
[1770978132783,3.43539055,79.95,79.924,11.58588075]
[1770978133381,3.43539055,79.96,79.925,11.49618569]
[1770978133585,3.43539055,79.97,79.934,11.49618569]
[1770978133890,3.43539055,79.96,79.934,11.49618569]
[1770978134993,11.2639,79.961,79.934,11.49618569]
[1770978137499,3.43539055,79.96,79.934,11.49618569]
[1770978138702,3.43539055,79.96,79.928,11.58588075]
[1770978138899,3.43539055,79.96,79.923,23.08206644]
[1770978139099,11.2642,79.959,79.924,11.49618569]
[1770978140096,11.2642,79.959,79.925,11.2689]
[1770978140297,11.2642,79.959,79.926,11.49618569]
[1770978143107,11.2634,79.965,79.928,11.49618569]
[1770978143610,11.2641,79.96,79.928,11.49618569]
[1770978143805,3.43539055,79.96,79.928,11.49618569]
[1770978144008,3.43539055,79.95,79.916,11.58588075]
[1770978144203,3.43539055,79.95,79.915,23.08206644]
[1770978144711,11.2656,79.949,79.915,23.08206644]
[1770978145213,11.2656,79.949,79.92,11.58588075]
[1770978145411,11.2647,79.956,79.92,23.08206644]
[1770978145600,11.2647,79.956,79.921,11.58588075]
[1770978146407,11.2654,79.951,79.921,11.58588075]
[1770978146609,11.2654,79.951,79.92,11.49618569]
[1770978146610,11.2654,79.951,79.92,23.08206644]
[1770978147212,11.2654,79.951,79.921,11.58588075]
[1770978151317,11.55363855,79.948,79.92,8.075e-05]
[1770978151522,11.55363855,79.948,79.905,11.77311372]
[1770978151710,11.55363855,79.948,79.905,26.81245135]
[1770978151914,11.56291236,79.98,79.914,11.77311372]
[1770978151915,11.55363855,79.966,79.914,11.77311372]
[1770978152113,3.43539055,79.96,79.914,11.77311372]
[1770978152719,11.55363855,79.966,79.926,11.77311372]
[1770978152720,11.2637,79.963,79.926,11.77311372]
[1770978153117,3.43539055,79.96,79.926,11.77311372]
[1770978153319,11.2637,79.963,79.926,11.77311372]
[1770978153618,11.2637,79.963,79.931,11.77311372]
[1770978158932,11.2645,79.957,79.931,11.77311372]
[1770978159130,3.43539055,79.95,79.913,15.03933763]
[1770978159429,10.97656908,79.949,79.908,11.15720086]
[1770978159629,11.2667,79.941,79.908,11.15720086]
[1770978164035,3.43539055,79.94,79.908,11.15720086]
[1770978164834,11.2667,79.941,79.908,11.15720086]
[1770978165634,11.265,79.953,79.92,3.43539055]
[1770978165827,11.265,79.953,79.921,11.15720086]
[1770978166334,3.43539055,79.95,79.911,11.15720086]
[1770978167531,3.43539055,79.96,79.923,11.15720086]
[1770978169034,11.2637,79.963,79.923,11.15720086]
[1770978171132,22.24026908,79.963,79.923,11.15720086]
[1770978171529,3.43539055,79.96,79.923,11.15720086]
[1770978173528,11.2637,79.963,79.926,11.15720086]
[1770978173735,10.97656908,79.959,79.917,15.03933763]
[1770978173930,10.97656908,79.949,79.911,15.03933763]
[1770978174124,10.97656908,79.939,79.902,15.03933763]
[1770978174322,10.97656908,79.939,79.901,26.19653849]
[1770978174538,10.97656908,79.939,79.902,11.15720086]
[1770978175436,11.2672,79.938,79.902,11.15720086]
[1770978175634,3.43539055,79.92,79.89,15.03933763]
[1770978175828,14.41195963,79.92,79.887,11.15720086]
[1770978176837,25.68165963,79.92,79.887,11.15720086]
[1770978178943,25.68481788,79.92,79.887,11.15720086]
[1770978180443,11.2681,79.931,79.893,11.15720086]
[1770978180645,3.4385488,79.93,79.893,11.15720086]
[1770978181142,11.2686,79.928,79.894,11.2733]
[1770978181735,11.2686,79.928,79.894,23.01251908]
[1770978181942,11.2686,79.928,79.895,11.73921908]
[1770978190848,15.46497355,79.92,79.883,11.73921908]
[1770978191847,12.02642475,79.919,79.883,11.73921908]
[1770978192445,11.2701,79.917,79.883,11.73921908]
[1770978192645,12.02642475,79.916,79.883,11.73921908]
[1770978193847,11.2713,79.909,79.872,11.73921908]
[1770978194552,23.29822475,79.906,79.872,11.73921908]
[1770978194754,12.02642475,79.905,79.861,11.73921908]
[1770978194941,3.4385488,79.9,79.861,11.73921908]
[1770978195348,12.02642475,79.905,79.861,11.73921908]
[1770978195854,11.273,79.897,79.861,11.73921908]
[1770978196148,12.02642475,79.918,79.871,11.73921908]
[1770978196753,11.2715,79.907,79.875,11.73921908]
[1770978198153,3.4385488,79.92,79.881,11.73921908]
[1770978198349,12.02642475,79.929,79.881,11.73921908]
[1770978198653,11.2714,79.908,79.881,11.73921908]
[1770978199755,11.2686,79.928,79.881,11.73921908]
[1770978200054,12.02642475,79.929,79.881,11.73921908]
[1770978200451,11.2694,79.923,79.883,11.73921908]
[1770978201659,12.02642475,79.929,79.891,11.73921908]
[1770978202847,11.2694,79.922,79.891,11.73921908]
[1770978205962,11.2702,79.917,79.891,11.73921908]
[1770978206958,23.29682475,79.915,79.879,11.73921908]
[1770978207962,3.4385488,79.91,79.879,11.73921908]
[1770978208458,11.2718,79.905,79.868,11.73921908]
[1770978208859,12.02642475,79.899,79.86,14.7165488]
[1770978209058,11.2739,79.89,79.856,11.73921908]
[1770978209258,14.7124488,79.89,79.856,11.73921908]
[1770978209869,11.2747,79.885,79.856,11.73921908]
[1770978210253,11.2747,79.885,79.802,37.47]
[1770978210254,3.4385488,79.88,79.841,11.73921908]
[1770978210559,11.15656389,79.897,79.851,11.88486836]
[1770978211263,11.2742,79.888,79.851,11.88486836]
[1770978212366,11.2732,79.896,79.86,3.4385488]
[1770978212564,11.2732,79.896,79.861,11.88486836]
[1770978213465,22.42976389,79.896,79.861,11.88486836]
[1770978214267,3.4385488,79.9,79.861,11.88486836]
[1770978214563,11.2721,79.903,79.861,11.88486836]
[1770978214764,3.4385488,79.9,79.861,11.88486836]
[1770978215258,3.4385488,79.9,79.862,11.81809521]
[1770978215564,22.533,79.943,79.871,11.81809521]
[1770978215565,11.2709,79.911,79.871,11.81809521]
[1770978216062,3.4385488,79.91,79.871,11.81809521]
[1770978216265,11.2714,79.908,79.871,11.81809521]
[1770978216464,3.4385488,79.9,79.864,11.56783238]
[1770978216660,12.05309216,79.899,79.859,11.56783238]
[1770978216965,11.274,79.889,79.855,11.56783238]
[1770978217163,11.274,79.889,79.856,11.56783238]
[1770978217561,11.275,79.883,79.851,11.56783238]
[1770978217764,11.275,79.883,79.849,11.81809521]
[1770978218269,106.88,79.921,79.845,11.56783238]
[1770978218270,12.05309216,79.874,79.845,11.56783238]
[1770978218569,12.05309216,79.874,79.839,11.56783238]
[1770978218764,12.05309216,79.874,79.84,11.81809521]
[1770978219161,12.05309216,79.874,79.84,23.38592759]
[1770978219364,12.05309216,79.874,79.84,11.81809521]
[1770978219964,22.5426,79.909,79.84,11.81809521]
[1770978219965,12.05309216,79.886,79.85,11.56783238]
[1770978220158,12.05309216,79.886,79.848,23.38592759]
[1770978220358,12.05309216,79.886,79.849,11.81809521]
[1770978220967,23.32759216,79.886,79.85,15.25664401]
[1770978221164,23.32759216,79.886,79.851,11.81809521]
[1770978221772,12.05309216,79.886,79.852,11.2791]
[1770978221976,3.4385488,79.89,79.853,11.81809521]
[1770978222869,11.274,79.889,79.853,11.81809521]
[1770978227475,11.2755,79.879,79.853,11.81809521]
[1770978228277,11.2755,79.879,79.848,11.56783238]
[1770978229472,11.2739,79.89,79.851,11.81809521]
[1770978229780,12.05309216,79.889,79.851,11.81809521]
[1770978230366,12.05309216,79.899,79.851,11.81809521]
[1770978230674,12.05309216,79.899,79.858,11.81809521]
[1770978230873,3.4385488,79.89,79.858,11.81809521]
[1770978231270,11.2747,79.884,79.858,11.81809521]
[1770978232370,12.05309216,79.889,79.858,11.81809521]
[1770978233475,14.7111488,79.9,79.863,11.2777]
[1770978234175,26.76424096,79.9,79.863,11.2777]
[1770978234374,11.2732,79.895,79.863,11.2777]
[1770978234572,15.49164096,79.9,79.863,11.2777]
[1770978235077,15.49164096,79.9,79.863,23.09579521]
[1770978236371,12.05309216,79.899,79.863,23.09579521]
[1770978236574,11.2728,79.898,79.863,11.81809521]
[1770978236879,12.05309216,79.897,79.863,11.81809521]
[1770978237079,11.2732,79.895,79.863,11.81809521]
[1770978238676,23.32629216,79.895,79.863,11.81809521]
[1770978239876,23.32679216,79.892,79.859,11.56783238]
[1770978240075,12.05309216,79.892,79.859,11.56783238]
[1770978240278,12.05309216,79.903,79.861,11.81809521]
[1770978240474,15.49339533,79.9,79.861,11.81809521]
[1770978241275,11.2729,79.897,79.862,11.2778]
[1770978241676,15.49339533,79.9,79.861,11.81809521]
[1770978242882,11.2727,79.899,79.861,11.81809521]
[1770978243478,12.19151502,79.898,79.861,11.81809521]
[1770978244185,23.46471502,79.895,79.861,11.81809521]
[1770978245084,12.19151502,79.894,79.861,11.81809521]
[1770978245974,11.2736,79.892,79.861,11.81809521]
[1770978247287,11.2736,79.892,79.861,23.38592759]
[1770978247980,12.19151502,79.894,79.861,23.38592759]
[1770978248384,12.19151502,79.894,79.862,11.56783238]
[1770978249387,12.19151502,79.894,79.863,11.56783238]
[1770978249583,11.2736,79.893,79.863,11.56783238]
[1770978250288,11.2736,79.893,79.864,11.56783238]
[1770978250589,12.19151502,79.892,79.864,11.56783238]
[1770978251385,12.19151502,79.889,79.861,11.56783238]
[1770978251689,12.19151502,79.889,79.851,15.03933763]
[1770978251690,12.19151502,79.889,79.856,11.56783238]
[1770978252288,12.19151502,79.889,79.857,11.56783238]
[1770978252789,11.2747,79.885,79.857,11.56783238]
[1770978253084,12.19151502,79.879,79.838,15.03933763]
[1770978253282,11.2774,79.866,79.837,27.37004941]
[1770978253484,12.19151502,79.865,79.827,15.03933763]
[1770978253678,15.25747754,79.912,79.825,491.39884997]
[1770978253679,12.19151502,79.89,79.851,12.33071178]
[1770978253884,12.19151502,79.89,79.86,3.44030317]
[1770978254084,12.19151502,79.9,79.861,12.33071178]
[1770978254485,11.2726,79.899,79.861,12.33071178]
[1770978254685,11.2726,79.899,79.86,3.44030317]
[1770978254686,11.2726,79.899,79.871,12.33071178]
[1770978255689,11.2712,79.909,79.871,12.33071178]
[1770978255891,11.2712,79.909,79.88,3.44030317]
[1770978256886,11.2712,79.909,79.88,15.77101495]
[1770978257089,11.2712,79.909,79.881,12.33071178]
[1770978257892,11.2698,79.92,79.891,12.33071178]
[1770978263695,12.19151502,79.929,79.891,12.33071178]
[1770978263888,12.19151502,79.929,79.9,3.44030317]
[1770978264289,23.46001502,79.929,79.891,23.60441178]
[1770978264495,12.19151502,79.928,79.891,12.33071178]
[1770978265796,11.6782726,79.962,79.902,12.33071178]
[1770978265797,12.19151502,79.939,79.902,12.33071178]
[1770978267798,11.2672,79.938,79.902,12.33071178]
[1770978267992,23.45871502,79.938,79.902,12.33071178]
[1770978268193,12.19151502,79.937,79.902,12.33071178]
[1770978269093,12.19151502,79.929,79.9,3.44030317]
[1770978269300,12.19151502,79.929,79.892,12.33071178]
[1770978269487,12.19151502,79.929,79.882,12.33071178]
[1770978270693,11.2697,79.92,79.882,12.33071178]
[1770978271602,11.2697,79.92,79.89,3.44030317]
[1770978271804,12.19151502,79.929,79.89,3.44030317]
[1770978272004,12.19151502,79.929,79.891,12.35474063]
[1770978272506,11.2686,79.928,79.892,11.2735]
[1770978272703,12.35395121,79.927,79.892,11.2735]
[1770978273604,12.35395121,79.919,79.871,15.03933763]
[1770978273799,12.35395121,79.919,79.871,12.35474063]
[1770978274106,3.44030317,79.91,79.871,12.35474063]
[1770978274407,12.35395121,79.909,79.871,12.35474063]
[1770978275802,11.2719,79.904,79.871,12.35474063]
[1770978278702,11.56555516,79.903,79.87,11.2766]
[1770978278906,11.56555516,79.897,79.861,11.75172563]
[1770978279097,11.56555516,79.91,79.871,11.75172563]
[1770978279303,11.56555516,79.91,79.88,3.44030317]
[1770978279503,22.83665516,79.91,79.88,3.44030317]
[1770978280002,22.83665516,79.91,79.871,11.75172563]
[1770978280397,11.272,79.904,79.871,11.75172563]
[1770978280997,11.56555516,79.91,79.871,11.75172563]
[1770978282109,11.56555516,79.909,79.871,11.75172563]
[1770978283808,11.2724,79.901,79.871,11.75172563]
[1770978284298,22.83795516,79.901,79.86,15.1920288]
[1770978284505,22.83845516,79.898,79.86,15.1920288]
[1770978285010,3.44030317,79.92,79.871,11.75172563]
[1770978285308,3.44030317,79.92,79.843,15.03933763]
[1770978285309,11.56555516,79.919,79.88,15.1920288]
[1770978286700,11.56555516,79.919,79.826,30.46095595]
[1770978286701,3.44030317,79.94,79.891,11.75172563]
[1770978286909,11.56555516,79.942,79.9,3.44030317]
[1770978287306,11.56555516,79.939,79.891,11.75172563]
[1770978287500,11.56555516,79.939,79.9,3.44030317]
[1770978287809,11.2677,79.934,79.9,3.44030317]
[1770978288199,11.56555516,79.933,79.9,3.44030317]
[1770978288406,11.2694,79.922,79.891,11.75172563]
[1770978288807,11.56555516,79.933,79.891,11.75172563]
[1770978289502,11.56555516,79.933,79.9,3.44030317]
[1770978289707,11.6782726,79.964,79.863,45.40605119]
[1770978289708,11.56555516,79.947,79.91,3.44030317]